Cogmind - Beta 15 @@@ ROGUE MODE // 2025.05.07 @ 20:51:41 Player: MadBadger Result: Destroyed by D-53 Grenadier with Mini Grenade Launcher Performance ------------- Evolutions (0) 0 Regions Visited (2) 400 Robots Destroyed (26) 130 Value Destroyed (539) 539 Prototype IDs (0) 0 Alien Tech Used (0) 0 Bonus (-18) -18 TOTAL SCORE: 1051 Bonus ------- Friendly Fire -18 Cogmind --------- Core Integrity 0/250 Matter 250/300 Energy 72/100 System Corruption 0% Temperature Cool (13) Movement Core (150) Ox2 Location -10/Mines Parts ------- > --- POWER (1) -------- (None) > --- PROPULSION (2) --- (None) > --- UTILITY (2) ------ Small Storage Unit Visual Processing Unit > --- WEAPON (2) ------- Medium Laser Small Laser > --- INVENTORY (8) ---- Ion Engine Aluminum Leg Small Laser Small Laser Small Laser Datajack Mining Laser Peak State ------------ > --- POWER ------------ Ion Engine > --- PROPULSION ------- Aluminum Leg Aluminum Leg > --- UTILITY ---------- Small Storage Unit Visual Processing Unit > --- WEAPON ----------- Assault Rifle Light Assault Rifle > --- INVENTORY -------- Ion Engine Light Ion Engine Medium Laser Small Laser Light Assault Rifle Grenade Launcher [Rating: 8] Favorites ----------- Power Ion Engine Engine Ion Engine Propulsion Aluminum Leg Leg Aluminum Leg Utility Small Storage Unit Storage Small Storage Unit Processor Visual Processing Unit Weapon Light Assault Rifle Energy Gun Medium Laser Ballistic Gun Light Assault Rifle Launcher Grenade Launcher Build | -11 -10 -10 ------- Run | Yrd Mat Min Slots Evolved . | . . . Power . | . . . Propulsion . | . . . Utility . | . . . Weapon . | . . . Parts Attached 16 | 6 9 1 Power 2 | 1 1 . Engine 2 | 1 1 . Core . | . . . Reactor . | . . . Propulsion 5 | 2 3 . Treads . | . . . Leg 5 | 2 3 . Wheel . | . . . Hover . | . . . Flight . | . . . Utility 2 | 1 1 . Device . | . . . Storage 1 | 1 . . Processor 1 | . 1 . Hackware . | . . . Protection . | . . . Artifact . | . . . Weapon 7 | 2 4 1 Energy Gun 3 | . 2 1 Energy Cannon . | . . . Ballistic Gun 3 | 2 1 . Ballistic Cannon . | . . . Launcher 1 | . 1 . Special Weapon . | . . . Impact Weapon . | . . . Slashing Weapon . | . . . Piercing Weapon . | . . . Special Melee Weapon . | . . . Unidentified Prototypes . | . . . Parts Lost 10 | . 6 4 Power 2 | . 1 1 Propulsion 4 | . 2 2 Utility . | . . . Weapon 4 | . 3 1 Highest Loss Streak 4 | . 3 4 To Critical Strikes . | . . . Average Backups 6 | 1 6 8 Power 1 | . 1 1 Propulsion . | . . 1 Utility . | . . . Weapon 4 | . 4 5 Tool/Special . | . . . Unused Backups 7 | . 1 6 Power 2 | . 1 1 Propulsion 1 | . . 1 Utility . | . . . Weapon 3 | . . 3 Tool/Special 1 | . . 1 Average Slot Usage (%) 90 | . 90 92 Engine 13 | . 13 14 Leg 25 | . 25 21 Storage 14 | . 14 14 Processor 9 | . 9 14 Energy Gun 5 | . 4 14 Ballistic Gun 19 | . 20 . Launcher 2 | . 1 14 Peak Build Rating 8 | 6 8 8 Average Rating 6 | 4 7 7 On Entrance 4 | . 6 8 Naked Turns . | . . . Heaviest Build 15 | 13 15 15 Greatest Support 20 | 20 20 20 Greatest Overweight (x) 2 | . 2 1 Average Overweight (x) . | . . . Largest Inventory Capacity 8 | 8 8 8 Average Capacity 7 | 6 8 8 Most Carried 8 | 2 8 8 Average Carried 6 | 1 6 7 Final Capacity 8 | 8 8 8 Final Carried 8 | 2 8 7 Class Distribution -------------------- 89% | Mutant 10% | Scavenger-Mutant Dominant Class ---------------- Mutant | -10/Materials Mutant | -10/Mines Resources | -11 -10 -10 ----------- Run | Yrd Mat Min Matter Collected 574 | 213 361 . Remotely . | . . . Salvage Created 668 | . 628 40 Parts 45 | . 43 2 Haulers Intercepted . | . . . Recyclers Shooed 2 | . 2 . Parts Field Recycled . | . . . Retrieved Matter . | . . . Parts Self-Destructed . | . . . Prevented . | . . . Kills | -11 -10 -10 ------- Run | Yrd Mat Min Combat Hostiles Destroyed 27 | . 19 8 Guns 17 | . 17 . AOE 9 | . 1 8 Classes Destroyed 6 | . 5 1 Recycler 1 | . 1 . Watcher 3 | . 3 . Swarmer 12 | . 9 3 Grunt 8 | . 8 . Subdweller 2 | . 2 . Assembled 5 | . . 5 Best Kill Streak 8 | . 4 8 Combat Bots Only 8 | . 4 8 Max Kills in Single Turn 3 | . 2 3 Gunslinging . | . . . Exploded 3 | . 1 3 Melee . | . . . Uniques/NPCs Destroyed . | . . . Combat | -11 -10 -10 -------- Run | Yrd Mat Min Hostile Shots Fired 130 | . 110 20 Missed 38 | . 32 6 Hits 92 | . 78 14 Projectile 92 | . 78 14 AOE 6 | . . 6 Critical Strikes 1 | . . 1 Damage Taken 1149 | . 835 314 Core 258 | . 146 112 Absorbed by Shields . | . . . Core Remaining (%) 100 | 100 . . Volleys Fired 89 | . 78 11 Largest 2 | . 2 2 Hottest 90 | . 90 90 Shots Fired 158 | . 140 18 Gun 151 | . 139 12 Cannon . | . . . Launcher 7 | . 1 6 Special . | . . . Kinetic 129 | . 129 . Thermal 22 | . 10 12 Explosive 7 | . 1 6 Electromagnetic . | . . . Robot Hit Streak 11 | . 11 2 Robot Miss Streak 6 | . 4 6 Penetration Max . | . . . Secondary Targets 2 | . 2 . Max Gunslinging Chain 1 | . 1 . Shots Hit Robots 98 | . 92 6 Core Hits 58 | . 38 20 Critical Kills 1 | . 1 . Critical Parts Destroyed . | . . . Critical Strikes 1 | . 1 . Destroy 1 | . 1 . Melee Attacks . | . . . Impact . | . . . Slashing . | . . . Piercing . | . . . Sneak Attacks . | . . . Combat Hostiles . | . . . Follow-up Attacks . | . . . Damage Inflicted 1501 | . 1012 489 Guns 945 | . 884 61 Cannons . | . . . Explosions 556 | . 128 428 Melee . | . . . Ramming . | . . . Kinetic 785 | . 785 . Thermal 160 | . 99 61 Explosive 556 | . 128 428 Electromagnetic . | . . . Impact . | . . . Slashing . | . . . Piercing . | . . . Highest Corruption . | . . . Average Corruption . | . . . Corruption Purged . | . . . Corruption Blocked . | . . . Overload Shots . | . . . Overflow Damage . | . . . Projectiles . | . . . Explosions . | . . . Melee . | . . . Knockbacks . | . . . Impact . | . . . Kinetic . | . . . Secondary . | . . . Self-Inflicted Damage . | . . . Shots . | . . . Rammed . | . . . Targets Rammed 1 | . 1 . Kicked 1 | . 1 . Crushed . | . . . Highest Temperature 46 | . 40 46 Average Temperature 15 | . 13 20 Received Heat Transfer 303 | . 303 . Siege Activations . | . . . Martial Activations . | . . . Shielding Activations . | . . . Robots Disrupted . | . . . Combat Hostiles . | . . . Robots Corrupted . | . . . Combat Hostiles . | . . . Parts Fried . | . . . Impact Corruptions . | . . . Robots Melted 1 | . 1 . Combat Hostiles 1 | . 1 . Parts Melted 1 | . 1 . Heat Transferred 457 | . 284 173 Parts Sabotaged . | . . . Parts Stolen . | . . . Parts Stripped . | . . . Power Chain Reactions . | . . . Alert | -11 -10 -10 ------- Run | Yrd Mat Min Maximum Alert Level . | . . . Low Security (%) 100 | 100 100 100 Level 1 . | . . . Level 2 . | . . . Level 3 . | . . . Level 4 . | . . . Level 5 . | . . . High Security . | . . . Max Security . | . . . Peak Influence 167 | . 167 86 Initial 6 | . . 6 Average 60 | . 62 75 Influence Increases 539 | . 440 99 Destroy 0b10 Robot/C 400 | . 340 60 Destroy 0b10 Robot/NC 20 | . 20 . Destroy Leader 76 | . 66 10 Successful Hack 4 | . 4 . Destroy Structure 39 | . 10 29 Influence Decreases 494 | . 422 72 Entered New Map 12 | . . 12 Time Decay 382 | . 362 20 Lost Part 100 | . 60 40 Squads Dispatched 2 | . 2 . Investigation 1 | . 1 . Extermination . | . . . Reinforcement 1 | . 1 . Assault . | . . . Garrison . | . . . Intercept . | . . . Searches Triggered . | . . . Construction Impeded . | . . . Haulers Reinforced . | . . . Active Scanning Responses . | . . . Cargo Convoy Interrupts . | . . . Stealth | -11 -10 -10 --------- Run | Yrd Mat Min Distress Signals 1 | . 1 . Communications Jammed . | . . . Distress Signals . | . . . Times Spotted 39 | . 27 12 Peak Tracking Total 9 | . 4 9 Tactical Retreats 1 | . 1 . Traps | -11 -10 -10 ------- Run | Yrd Mat Min Traps Triggered 2 | . 2 . Indirectly . | . . . Trap Hack Attempts . | . . . Triggered . | . . . Disarmed . | . . . Reprogrammed . | . . . Reused . | . . . Traps Extracted . | . . . Installed . | . . . Triggered . | . . . Machines | -11 -10 -10 ---------- Run | Yrd Mat Min Machines Disabled . | . . . Max in Single Turn . | . . . Machines Repaired . | . . . Machines Dismantled . | . . . Machines Sabotaged . | . . . Overloaded Fab Kills . | . . . Hacking | -11 -10 -10 --------- Run | Yrd Mat Min Machines Accessed 5 | . 5 . Terminals 5 | . 5 . Fabricators . | . . . Repair Stations . | . . . Recycling Units . | . . . Scanalyzers . | . . . Garrison Access . | . . . Total Hacks 13 | . 13 . Successful 3 | . 3 . Failed 10 | . 10 . Catastrophic 4 | . 4 . Database Lockouts . | . . . Manual 12 | . 12 . Terminals 13 | . 13 . Fabricators . | . . . Repair Stations . | . . . Recycling Units . | . . . Scanalyzers . | . . . Garrison Access . | . . . Terminal Hacks . | . . . Fabricator Hacks . | . . . Repair Station Hacks . | . . . Recycling Unit Hacks . | . . . Scanalyzer . | . . . Garrison Access Hacks . | . . . Unauthorized Hacks 3 | . 3 . Terminals 3 | . 3 . Botnet 3 | . 3 . Fabricators . | . . . Repair Stations . | . . . Recycling Units . | . . . Scanalyzers . | . . . Garrison Access . | . . . Data Cores Recovered . | . . . Used . | . . . Hacking Detections 3 | . 3 . Full Trace Events 2 | . 2 . Feedback Events . | . . . Feedback Blocked . | . . . Robot Schematics Acquired . | . . . Robots Built . | . . . Authchips . | . . . Time . | . . . Total Robot Build Rating . | . . . Part Schematics Acquired . | . . . Parts Built . | . . . Authchips . | . . . Time . | . . . Total Part Build Rating . | . . . Parts Repaired . | . . . Time . | . . . Parts Recycled . | . . . Recycled Matter . | . . . Retrieved Matter . | . . . Retrieved Components . | . . . Parts Scanalyzed . | . . . Part Schematics Acquired . | . . . Parts Damaged . | . . . Bothacking | -11 -10 -10 ------------ Run | Yrd Mat Min Used RIF Installer . | . . . Robots Hacked . | . . . Non-combat . | . . . Combat . | . . . Robot Hacks Applied . | . . . Relay Couplers Released . | . . . Fabnet Peak Effective % . | . . . Robots Rewired . | . . . Allies Hacked . | . . . Hacks Repelled . | . . . Allies | -11 -10 -10 -------- Run | Yrd Mat Min Total Allies . | . . . Largest Group . | . . . Highest-Rated Group . | . . . Highest-Rated Ally . | . . . Total Orders . | . . . Ally Attacks . | . . . Total Damage . | . . . Kills . | . . . Allies Corrupted . | . . . Allies Melted . | . . . Intel | -11 -10 -10 ------- Run | Yrd Mat Min Active Infowar (turns) 792 | . 734 58 Optics 792 | . 734 58 Robot Analysis Total . | . . . Derelict Logs Recovered . | . . . Drone Launches . | . . . Drone Recoveries . | . . . Exploration | -11 -10 -10 ------------- Run | Yrd Mat Min Turns Passed 1257 | 67 1132 58 Spaces Moved 757 | 45 691 21 Core 3 | 1 2 . Treads . | . . . Legs 754 | 44 689 21 Wheels . | . . . Hover . | . . . Flight . | . . . Fastest Speed 50 | 50 120 120 Average Speed 127 | 118 127 140 Slowest Speed 190 | 120 190 190 Overloaded Moves . | . . . Propulsion Burnouts . | . . . Robots Hopped . | . . . Potential Cave-ins . | . . . Cave-ins Triggered . | . . . Exploration Rate (%) 35 | 4 90 13 Regions Visited 2 Branch Regions 1 Pre-discovered Areas . | . . . Known Exits Taken . | . . . Unknown Exits Taken 2 | 1 1 . Scrap Searched . | . . . Spaces Dug . | . . . Terrain Destroyed 49 | . 10 39 Melee . | . . . Projectile . | . . . AOE 49 | . 10 39 Terrain Rammed . | . . . Walls Destroyed . | . . . Machines Disabled . | . . . Actions | -11 -10 -10 --------- Run | Yrd Mat Min Total 905 | 55 817 33 Wait 25 | 3 22 . Move 755 | 44 690 21 Hop . | . . . Pick Up 13 | 2 11 . Fast Attach 13 | 6 7 . Attach 5 | . 4 1 Detach . | . . . Swap 1 | . 1 . Drop 3 | . 3 . Fire 89 | . 78 11 Melee . | . . . Ram . | . . . Kick 1 | . 1 . Crush . | . . . Escape Stasis . | . . . Rewire . | . . . Trap . | . . . Miscellaneous . | . . . Route ------- -11/Scrapyard -10/Materials (discovered 5 exits: [*Mat x2] / [*Min x2] / [*Sub]) -10/Mines (discovered 1 exit: [*Mat]) History --------- Turn | Location | Event 2 | -11/Scrapyard | Met Revision 17 6 | -11/Scrapyard | Discovered new exit (range 15) 68 | -11/Scrapyard | Entered Materials 109 | -10/Materials | Discovered new exit (range 16) 136 | -10/Materials | Discovered new exit (range 11) 316 | -10/Materials | Build established: Mutant 442 | -10/Materials | Discovered new exit (range 11) 633 | -10/Materials | Discovered new exit (range 10) 768 | -10/Materials | Derelicts attacked the area 831 | -10/Materials | Lost 3 parts (1p1n1w) 864 | -10/Materials | Discovered new exit (range 17) 905 | -10/Materials | Core integrity fell below 50% 1200 | -10/Materials | Entered Mines 1200 | -10/Mines | Discovered new exit (range 9) 1201 | -10/Mines | Assembled infested the area 1206 | -10/Mines | Assisted by a Guerilla fighting off Assembled 1254 | -10/Mines | Core integrity fell below 20% 1255 | -10/Mines | Destroyed 8 combat bots 1258 | -10/Mines | Destroyed by D-53 Grenadier with Mini Grenade Launcher Last Messages --------------- 01244_ D-53 Grenadier suffers critical hit (Destroy). 01244_ D-53 Grenadier destroyed. 01244_ HV Slug penetrates Wall. 01246_ T-07 Excavator destroyed. 01246_ HV Slug penetrates Earth. 01246_ HV Slug penetrates Wall. 01248_ U-05 Engineer lays Concrete. 01248_ K-01 Serf collects debris. 01249_ U-05 Engineer lays Concrete. 01249_ K-01 Serf destroyed. 01249_ 4C-2CI(h) destroyed. 01250_ U-05 Engineer lays Concrete. 01253_ Grenade Launcher destroyed. 01253_ Aluminum Leg destroyed. 01253_ T-07 Excavator destroyed. 01254_ U-05 Engineer lays Concrete. 01255_ Ion Engine destroyed. 01256_ U-05 Engineer lays Concrete. 01257_ U-05 Engineer builds a Wall. [Achievement: Back For More] Map ----- +----------------------------------------------------+ | | | | | | | | | ?????????????????????????????????????????? | | ?????????????????????????????????????????? | | ?????????????????????????????????????????? | | ?????????????????????????????????????????? | | ??????????????##?????????????????????????? | | ?????????????##;?????????????????????????? | | ?????????????# #????????????????????????? | | ?????????????# ##??????????????????????? | | ?????????????# ##?????????????????????? | | ????????????## ##????????????????????? | | ????????????# #????????????????????? | | ????????????? #????????????????????? | | ?????????????# ##???????????????????? | | ?????????????# ##??????????????????? | | ?????????????? #??????????????????? | | ??????????????# #??????????????????? | | ???###???????## #???????????????????? | | ??## ##?????# ##?#?????????????????? | | ??# #???## # #?????????????????? | | ??# ##?# #?????????????????? | | ???# ### #?????????????????? | | ??????# # @ #?????????????????? | | ???????# #?????????????????? | | ???????# = ##?????????????????? | | ???????# # % #??????????????????? | | ??????# # ! u